bitfinex-derivatives/quotes_SOLF0:USTF0_20250413
["timestamp","ask_amount","ask_price","bid_price","bid_amount"]
[1744550389782,37.5056,129.48,129.45,2.03122555]
[1744550389981,37.5056,129.48,129.45,9.75812555]
[1744550390394,37.5056,129.48,129.46,7.7264]
[1744550390584,29.78,129.48,129.46,7.7264]
[1744550391184,29.78,129.54,129.46,29.78]
[1744550391386,102.0155163,129.6,129.47,2.0694]
[1744550391590,102.0155163,129.6,129.54,7.7215]
[1744550391891,7.7198,129.58,129.51,29.78]
[1744550392191,7.7209,129.56,129.52,1.9783]
[1744550392390,7.77832619,129.56,129.53,0.05025208]
[1744550393290,7.77832619,129.56,129.53,7.77225208]
[1744550393494,0.05742619,129.56,129.53,0.05025208]
[1744550393690,0.05742619,129.56,129.55,7.7211]
[1744550394090,0.05742619,129.56,129.53,0.05025208]
[1744550394591,0.05742619,129.56,129.53,7.77225208]
[1744550395389,29.56,129.57,129.53,0.05025208]
[1744550395589,29.56,129.6,129.54,2.0303]
[1744550396582,29.56,129.6,129.56,0.05398485]
[1744550396788,0.05909295,129.58,129.56,0.05398485]
[1744550396992,611.8,129.65,129.56,0.05398485]
[1744550397293,29.56,129.63,129.54,31.5903]
[1744550397695,7.7179,129.61,129.54,31.5903]
[1744550398096,0.05575513,129.59,129.56,0.05520906]
[1744550399199,7.77485513,129.59,129.56,0.05520906]
[1744550399495,0.05575513,129.59,129.56,0.05520906]
[1744550400302,7.7199,129.57,129.56,0.05520906]
[1744550400599,0.05575513,129.59,129.56,0.05520906]
[1744550400798,7.7196,129.58,129.56,0.05520906]
[1744550400998,0.05575513,129.59,129.56,0.05520906]
[1744550401503,7.7194,129.58,129.56,0.05520906]
[1744550402202,7.7199,129.57,129.56,0.05520906]
[1744550403101,7.7197,129.58,129.56,0.05520906]
[1744550403702,7.7199,129.57,129.56,0.05520906]
[1744550403901,29.54,129.57,129.52,1.9783]
[1744550404503,29.54,129.57,129.49,3.9292]
[1744550404706,7.7226,129.53,129.49,3.9292]
[1744550405199,7.7209,129.56,129.5,29.5950549]
[1744550405399,29.54,129.58,129.5,29.54]
[1744550406003,29.54,129.58,129.49,3.9292]
[1744550406296,29.54,129.58,129.52,0.04974728]
[1744550406297,0.05291367,129.55,129.52,0.04974728]
[1744550406501,29.59291367,129.55,129.52,0.04974728]
[1744550407107,7.7223,129.53,129.52,0.04974728]
[1744550407306,7.7223,129.53,129.48,2.064]
[1744550407307,29.59291367,129.55,129.48,2.064]
[1744550407507,29.54,129.54,129.44,29.54]
[1744550407709,29.54,129.54,129.42,1.986]
[1744550408507,0.05812426,129.49,129.47,0.05473501]
[1744550408810,7.7253,129.48,129.47,0.05473501]
[1744550414212,29.59379303,129.49,129.47,0.05473501]
[1744550414512,0.05379303,129.49,129.47,0.05473501]
[1744550415113,7.7253,129.48,129.47,0.05473501]
[1744550432728,0.05379303,129.49,129.47,0.05473501]
[1744550432928,29.56,129.52,129.47,0.05473501]
[1744550433929,0.05212759,129.51,129.47,0.05473501]
[1744550434126,7.7253,129.48,129.47,0.05473501]
[1744550437633,7.7283,129.43,129.42,1.986]
[1744550438735,7.728,129.44,129.42,1.986]
[1744550438936,7.78240635,129.44,129.42,1.986]
[1744550444438,7.7283,129.43,129.42,1.986]
[1744550445747,7.7289,129.42,129.41,0.05645928]
[1744550448342,29.56,129.42,129.36,2.076]
[1744550449045,7.7317,129.38,129.36,2.076]
[1744550449445,7.79073505,129.38,129.36,2.12980073]
[1744550449644,7.7319,129.37,129.36,0.05380073]
[1744550450142,0.05903505,129.38,129.36,0.05380073]
[1744550451138,7.7319,129.37,129.36,0.05380073]
[1744550453346,0.05903505,129.38,129.36,0.05380073]
[1744550453749,7.79043505,129.38,129.36,0.05380073]
[1744550454046,0.05903505,129.38,129.36,0.05380073]
[1744550454246,7.79053505,129.38,129.36,0.05380073]
[1744550454749,0.05903505,129.38,129.36,0.05380073]
[1744550455047,7.79063505,129.38,129.36,0.05380073]
[1744550455448,0.05903505,129.38,129.36,0.05380073]
[1744550456243,7.7319,129.37,129.36,0.05380073]
[1744550461744,0.05903505,129.38,129.27,641.5]
[1744550461944,29.58,129.37,129.28,4.0963]
[1744550462245,29.58,129.36,129.27,29.58]
[1744550462547,29.58,129.35,129.24,33.746]
[1744550462749,7.7363,129.3,129.24,33.746]
[1744550462940,7.7363,129.3,129.28,0.05173409]
[1744550463345,7.79500427,129.3,129.28,0.05173409]
[1744550463649,7.7367,129.29,129.28,0.05173409]
[1744550464049,7.79510427,129.3,129.28,0.05173409]
[1744550464352,0.05870427,129.3,129.28,0.05173409]
[1744550464850,7.7367,129.29,129.28,0.05173409]
[1744550465851,7.7367,129.29,129.23,2.0479]
[1744550465852,7.739,129.26,129.2,613.6063324]
[1744550466053,29.58,129.29,129.21,6.0294]
[1744550466449,7.7395,129.25,129.21,6.0294]
[1744550466649,29.58,129.29,129.21,6.0294]
[1744550467049,0.0539045,129.26,129.24,0.05024942]
[1744550467353,29.6339045,129.26,129.17,6.0294]
[1744550467556,29.58,129.26,129.17,6.0294]
[1744550467760,7.7397,129.24,129.17,6.0294]
[1744550468255,7.7403,129.23,129.17,6.0294]
[1744550468445,0.05870048,129.22,129.19,0.0561229]
[1744550469055,0.05870048,129.22,129.19,29.6561229]
[1744550469251,0.05870048,129.22,129.19,0.0561229]
[1744550470548,7.7421,129.2,129.19,0.0561229]
[1744550471355,29.6,129.2,129.11,36.10657775]
[1744550471657,29.6,129.2,129.12,2.0842]
[1744550472156,29.6,129.2,129.13,33.7078]
[1744550472558,0.05755065,129.18,129.15,0.05460045]
[1744550472957,7.7442,129.17,129.15,0.05460045]
[1744550473159,0.05755065,129.18,129.15,0.05460045]
[1744550473758,7.7445,129.16,129.15,0.05460045]
[1744550473959,29.6,129.17,129.1,29.6]
[1744550474461,29.6,129.17,129.06,7.52979241]
[1744550474662,7.7467,129.13,129.07,29.6]
[1744550474853,29.6,129.17,129.07,29.6]
[1744550475258,0.05786266,129.13,129.11,0.05394791]
[1744550475460,29.6,129.12,129.06,7.52979241]
[1744550475660,29.6,129.12,129.06,6.182]
[1744550475859,612.92,129.16,129.06,6.182]
[1744550476060,29.6,129.13,129.06,6.182]
[1744550476565,29.6,129.13,129.08,0.04040966]
[1744550476566,0.05148442,129.11,129.08,0.04040966]
[1744550478073,0.05148442,129.11,129.08,7.78930966]
[1744550478765,0.05148442,129.11,129.08,0.04040966]
[1744550478965,364.0,129.22,129.08,0.04040966]
[1744550479161,7.7463,129.13,129.06,6.182]
[1744550479566,29.62,129.14,129.06,6.182]
[1744550479762,29.62,129.14,129.03,359.34810568]
[1744550479970,613.1,129.13,128.98,6.2013]
[1744550480170,0.05264023,129.1,128.98,6.2013]
[1744550480471,29.62,129.09,128.98,6.2013]
[1744550480670,29.62,129.08,128.98,6.2013]
[1744550481071,614.9183,129.13,128.98,6.2013]
[1744550481272,29.62,129.12,128.99,29.62]
[1744550481472,7.80087095,129.07,129.04,0.03829769]
[1744550481674,0.05097095,129.07,128.99,29.62]
[1744550481977,29.62,129.08,129.04,0.03829769]
[1744550482373,0.05848816,129.07,128.99,29.62]
[1744550482675,614.3017,129.13,128.99,29.62]
[1744550482877,0.05394809,129.04,129.02,0.03829769]
[1744550483076,7.7491,129.09,129.04,7.7515]
[1744550483278,29.62,129.1,129.02,29.65829769]
[1744550483477,29.62,129.09,129.02,29.62]
[1744550483678,7.7496,129.08,129.03,7.7518]
[1744550483877,29.62,129.09,129.02,29.62]
[1744550484079,37.3689,129.09,129.04,7.7512]
[1744550484279,0.04902632,129.07,129.04,0.05221718]
[1744550484481,29.62,129.09,129.04,0.05221718]
[1744550484675,7.7481,129.1,129.06,7.7501]
[1744550484875,29.64,129.12,129.02,29.62]
[1744550484876,613.1,129.13,129.05,4.1796]
[1744550485081,642.74,129.13,129.05,4.1796]
[1744550485285,7.7469,129.12,129.07,7.7496]
[1744550485581,0.0492007,129.11,129.08,0.05035853]
[1744550485782,7.7972007,129.11,129.08,0.05035853]
[1744550486376,0.0492007,129.11,129.08,0.05035853]
[1744550486881,0.0492007,129.11,129.08,7.79945853]
[1744550487082,0.0492007,129.11,129.08,0.05035853]
[1744550487677,7.7485,129.1,129.08,0.05035853]
[1744550488384,7.7487,129.09,129.08,0.05035853]
[1744550488878,30.04,129.1,129.08,0.05035853]
[1744550489183,0.0492007,129.11,129.08,0.05035853]
[1744550490183,30.04,129.18,129.08,30.09035853]
[1744550490382,30.04,129.18,129.08,30.04]
[1744550491087,7.7449,129.16,129.12,7.7468]
[1744550491385,0.05173358,129.14,129.12,7.79738368]
[1744550491885,0.05173358,129.14,129.13,7.7463]
[1744550492485,30.04,129.2,129.15,7.7448]
[1744550492980,7.743,129.19,129.15,7.7448]
[1744550493186,30.04,129.2,129.14,9.9137]
[1744550493786,7.79809819,129.18,129.16,0.053661]
[1744550494182,0.05449819,129.18,129.16,0.053661]
[1744550494379,7.79809819,129.18,129.16,0.053661]
[1744550494881,0.05449819,129.18,129.16,0.053661]
[1744550495081,0.05449819,129.18,129.16,7.797861]
[1744550495289,30.04,129.17,129.16,0.053661]
[1744550495480,37.7839,129.17,129.16,0.053661]
[1744550496189,30.04,129.17,129.16,0.053661]
[1744550497789,37.7839,129.17,129.16,0.053661]
[1744550498286,30.04,129.17,129.16,0.053661]
[1744550499390,30.04,129.17,129.11,30.04]
[1744550499686,30.04,129.17,129.08,1.9866]
[1744550499687,30.04,129.17,129.09,2.1253]
[1744550499890,30.04,129.17,129.08,32.0266]
[1744550500479,0.05531477,129.14,129.11,0.05490062]
[1744550500688,30.09531477,129.14,129.11,0.05490062]
[1744550500889,37.84131477,129.14,129.11,0.05490062]
[1744550501087,30.09531477,129.14,129.11,0.05490062]
[1744550501587,7.7466,129.13,129.11,0.05490062]
[1744550501887,30.09531477,129.14,129.11,0.05490062]
[1744550502387,37.84131477,129.14,129.11,0.05490062]
[1744550504387,30.09531477,129.14,129.11,0.05490062]
[1744550504984,7.7466,129.13,129.11,0.05490062]
[1744550505693,30.09531477,129.14,129.11,0.05490062]
[1744550506293,7.7463,129.13,129.11,0.05490062]
[1744550508386,37.84131477,129.14,129.11,0.05490062]
[1744550509191,30.09531477,129.14,129.11,0.05490062]
[1744550509890,7.7463,129.13,129.11,0.05490062]
[1744550510086,37.7863,129.13,129.11,0.05490062]
[1744550510291,30.04,129.13,129.11,0.05490062]
[1744550510492,37.7863,129.13,129.11,0.05490062]
[1744550511193,7.7469,129.12,129.11,0.05490062]
[1744550512294,37.7866,129.13,129.11,0.05490062]
[1744550513491,30.04,129.13,129.11,0.05490062]
[1744550514393,37.7864,129.13,129.11,0.05490062]
[1744550515592,7.80111477,129.14,129.11,0.05490062]
[1744550515996,0.05531477,129.14,129.11,0.05490062]
[1744550517196,30.74,129.19,129.11,0.05490062]
[1744550517386,30.74,129.19,129.1,3.9302]
[1744550518096,7.7452,129.15,129.1,3.9302]
[1744550518398,0.05292304,129.16,129.13,0.05725406]
[1744550518586,7.7451,129.15,129.13,0.05725406]
[1744550518790,0.05292304,129.16,129.13,0.05725406]
[1744550519197,7.7457,129.14,129.13,0.05725406]
[1744550519703,7.7479,129.11,129.06,32.9043]
[1744550520387,30.74,129.15,129.06,32.9043]
[1744550520788,7.7479,129.11,129.1,0.05624918]
[1744550522802,0.04988136,129.12,129.1,0.05624918]
[1744550523898,30.74,129.15,129.1,0.05624918]
[1744550524699,30.74,129.18,129.1,30.79624918]
[1744550524898,7.7448,129.16,129.1,30.74]
[1744550525103,0.04953742,129.15,129.13,0.05091266]
[1744550525301,30.74,129.2,129.1,30.74]
[1744550525501,38.4824,129.2,129.1,30.74]
[1744550525700,30.74,129.2,129.1,30.74]
[1744550526107,7.7429,129.19,129.1,30.74]
[1744550526400,7.7429,129.19,129.13,0.05016951]
[1744550526606,0.04997178,129.16,129.13,0.05016951]
[1744550527304,30.74,129.15,129.07,2.1683]
[1744550527705,7.746,129.14,129.07,2.1683]
[1744550528207,38.4853,129.15,129.07,2.1683]
[1744550528401,30.74,129.15,129.07,2.1683]
[1744550528598,0.05495794,129.12,129.1,0.05300344]
[1744550529107,30.74,129.18,129.1,30.79300344]
[1744550529301,30.74,129.18,129.11,1.975]
[1744550529909,7.7452,129.15,129.11,1.975]
[1744550530102,7.7452,129.15,129.1,30.74]
[1744550530302,0.05933537,129.14,129.12,0.05681775]
[1744550532109,162.488474,129.3,129.12,0.05681775]
[1744550532311,7.7436,129.18,129.1,30.74]
[1744550532905,7.7436,129.18,129.14,7.7455]
[1744550533319,0.05271673,129.17,129.15,0.05241517]
[1744550535905,30.74,129.16,129.07,388.74]
[1744550536109,30.74,129.16,129.07,30.74]
[1744550536511,7.7475,129.11,129.08,7.7489]
[1744550536711,30.74,129.16,129.07,30.74]
[1744550537012,0.05601811,129.13,129.1,0.05165877]
[1744550537202,7.7472,129.12,129.1,0.05165877]
[1744550537404,0.05601811,129.13,129.1,0.05165877]
[1744550537812,7.7472,129.12,129.1,0.05165877]
[1744550538711,7.7475,129.11,129.1,0.05165877]
[1744550539814,7.7471,129.12,129.1,0.05165877]
[1744550542811,7.7475,129.11,129.1,0.05165877]
[1744550548122,0.05601811,129.13,129.1,0.05165877]
[1744550548718,0.05601811,129.13,129.11,7.7473]
[1744550548913,0.05601811,129.13,129.1,0.05165877]
[1744550549319,0.05601811,129.13,129.1,30.41165877]
[1744550549720,0.05601811,129.13,129.1,38.15915877]
[1744550552024,0.05601811,129.13,129.11,7.7473]
[1744550552324,0.05601811,129.13,129.1,30.41165877]
[1744550552621,7.80271811,129.13,129.1,30.41165877]
[1744550552828,30.36,129.19,129.1,30.41165877]
[1744550553030,30.36,129.19,129.11,4.1938]
[1744550553427,7.7454,129.15,129.11,11.941]
[1744550553831,7.7454,129.15,129.11,4.1938]
[1744550554032,7.7454,129.15,129.12,0.05879766]
[1744550554033,0.05102428,129.14,129.12,0.05879766]
[1744550554631,7.79672428,129.14,129.12,0.05879766]
[1744550554931,0.05102428,129.14,129.12,0.05879766]
[1744550555622,7.7463,129.13,129.12,0.05879766]
[1744550558036,7.79692428,129.14,129.12,0.05879766]
[1744550558938,0.05102428,129.14,129.12,0.05879766]
[1744550559835,30.36,129.19,129.12,0.05879766]
[1744550560138,30.36,129.19,129.12,1.9845]
[1744550560340,7.7445,129.16,129.13,7.746]
[1744550560529,30.36,129.19,129.11,4.1938]
[1744550560733,7.7443,129.17,129.13,7.746]
[1744550560933,0.0518355,129.16,129.14,0.05527908]
[1744550561334,0.0518355,129.16,129.15,7.7451]
[1744550561534,0.0518355,129.16,129.14,0.05527908]
[1744550563440,7.7451,129.15,129.14,0.05527908]
[1744550565537,30.4118355,129.16,129.1,30.36]
[1744550565737,30.4118355,129.16,129.07,32.4868]
[1744550565943,30.36,129.16,129.07,32.4868]
[1744550566442,7.7467,129.13,129.1,7.7478]
[1744550566643,7.79939126,129.13,129.1,7.80694232]
[1744550567445,7.7469,129.12,129.1,0.05914232]
[1744550567650,0.05269126,129.13,129.1,0.05914232]
[1744550567942,7.7473,129.12,129.1,0.05914232]
[1744550568144,0.05269126,129.13,129.1,0.05914232]
[1744550569046,7.7475,129.11,129.1,0.05914232]
[1744550572144,7.7494,129.08,129.06,2.1255]
[1744550572343,615.8423,129.15,128.97,135.08950321]
[1744550572543,395.76380189,129.14,129.0,7.7538]
[1744550572745,7.7519,129.04,128.98,40.6350516]
[1744550573144,7.7519,129.04,129.01,7.7531]
[1744550573343,0.05022882,129.02,129.01,7.7531]
[1744550575449,0.05022882,129.02,129.0,7.80967176]
[1744550576840,7.80312882,129.02,129.0,0.05577176]
[1744550577045,0.05022882,129.02,129.0,0.05577176]
[1744550577445,0.05022882,129.02,129.0,7.80947176]
[1744550577847,0.05022882,129.02,129.0,0.05577176]
[1744550578546,7.80312882,129.02,129.0,0.05577176]
[1744550578751,0.05022882,129.02,129.0,0.05577176]
[1744550579350,0.05022882,129.02,128.92,30.2]
[1744550579549,30.2,129.03,128.94,4.1375]
[1744550579751,7.7532,129.02,128.98,7.7549]
[1744550580252,7.7532,129.02,128.99,7.7546]
[1744550580549,0.05918615,129.02,128.99,0.05004173]
[1744550581150,7.7513,129.05,128.99,6.16354173]
[1744550581354,30.2,129.07,129.02,7.7525]
[1744550581550,31.2504,129.1,129.02,30.2]
[1744550581754,364.0,129.15,129.02,30.2]
[1744550582050,7.7479,129.11,129.02,30.2]
[1744550582349,0.05230454,129.08,129.05,0.05020257]
[1744550582549,30.2,129.16,129.06,30.2]
[1744550582849,0.05208126,129.08,129.07,30.2]
[1744550583042,30.2,129.16,129.09,7.7483]
[1744550583249,7.7469,129.12,129.09,7.7483]
[1744550583652,7.7469,129.12,129.09,7.80581494]
[1744550584750,7.7475,129.11,129.09,0.05751494]
[1744550585151,7.80105856,129.11,129.09,0.05751494]
[1744550585749,0.05355856,129.11,129.09,7.80611494]
[1744550586354,0.05355856,129.11,129.1,7.7481]
[1744550586550,0.05355856,129.11,129.09,0.05751494]
[1744550587054,7.80135856,129.11,129.09,0.05751494]
[1744550587756,7.7481,129.1,129.09,0.05751494]
[1744550588556,37.94,129.1,129.01,4.1076]
[1744550588746,32.5579,129.1,129.01,4.1076]
[1744550589553,0.05235982,129.07,129.01,4.1076]
[1744550589758,0.05235982,129.07,129.04,0.05282408]
[1744550590058,0.05235982,129.07,129.04,30.25282408]
[1744550590456,0.05235982,129.07,129.06,7.7505]
[1744550592956,30.2,129.13,129.05,2.0631]
[1744550593257,7.7475,129.11,129.05,2.0631]
[1744550593655,30.2,129.13,129.05,2.0631]
[1744550593862,30.2,129.16,129.05,2.0631]
[1744550594062,0.05850615,129.12,129.09,0.04935063]
[1744550594559,0.05850615,129.12,129.09,2.06495063]
[1744550594860,0.05850615,129.12,129.11,7.7475]
[1744550595962,644.04,129.19,129.11,30.2]
[1744550596862,7.745,129.16,129.12,7.7464]
[1744550597161,7.80409821,129.16,129.14,0.05411283]
[1744550597362,0.05909821,129.16,129.14,7.79971283]
[1744550598764,7.80369821,129.16,129.14,0.05411283]
[1744550599263,0.05909821,129.16,129.14,0.05411283]
[1744550599964,0.05909821,129.16,129.14,7.79941283]
[1744550600466,7.80359821,129.16,129.14,0.05411283]
[1744550600963,0.05909821,129.16,129.14,0.05411283]
[1744550601565,7.80389821,129.16,129.14,0.05411283]
[1744550601864,0.05909821,129.16,129.14,0.05411283]
[1744550602664,7.80369821,129.16,129.14,0.05411283]
[1744550603965,7.7451,129.15,129.14,0.05411283]
[1744550604161,0.05909821,129.16,129.14,0.05411283]
[1744550604565,7.80369821,129.16,129.14,0.05411283]
[1744550605466,7.7451,129.15,129.14,0.05411283]
[1744550607362,7.7475,129.11,129.07,30.18]
[1744550607667,7.7475,129.11,129.08,7.7489]
[1744550607871,30.18,129.15,129.07,30.18]
[1744550608169,30.18,129.18,129.12,7.7468]
[1744550608569,0.0513419,129.16,129.12,7.7468]
[1744550608770,0.0513419,129.16,129.14,0.05808688]
[1744550610176,7.7455,129.15,129.14,0.05808688]
[1744550612477,7.7960419,129.16,129.14,0.05808688]
[1744550613179,0.0513419,129.16,129.14,7.80368688]
[1744550614575,364.0,129.24,129.14,0.05808688]
[1744550614780,30.18,129.23,129.14,30.18]
[1744550615280,7.7421,129.2,129.18,7.7432]
[1744550615779,0.05572382,129.2,129.18,7.80164986]
[1744550616083,0.05572382,129.2,129.19,7.7427]
[1744550617180,0.05572382,129.2,129.18,7.80144986]
[1744550618581,0.05572382,129.2,129.18,0.05844986]
[1744550620281,0.05572382,129.2,129.19,7.7427]
[1744550622083,7.7399,129.24,129.18,6.12114986]
[1744550622283,30.16,129.27,129.18,6.0627]
[1744550622483,30.16,129.27,129.24,7.7395]
[1744550623182,30.21023701,129.27,129.24,7.79432717]
[1744550623384,37.94843701,129.27,129.24,7.79432717]
[1744550623583,37.94843701,129.27,129.25,7.7389]
[1744550623781,7.78843701,129.27,129.25,7.7389]
[1744550624078,0.05023701,129.27,129.24,0.05482717]
[1744550624286,0.05023701,129.27,129.24,30.21482717]
[1744550624783,0.05023701,129.27,129.26,7.7385]
[1744550625379,1.1495,129.37,129.25,4.0918]
[1744550625583,2.4619,129.37,129.25,34.2518]
[1744550625883,30.16,129.38,129.32,7.7345]
[1744550626085,30.16,129.38,129.25,34.2518]
[1744550626284,7.7339,129.34,129.31,7.7354]
[1744550626480,30.20902009,129.33,129.31,7.7354]
[1744550626676,30.20902009,129.33,129.25,34.2518]
[1744550626876,0.05651785,129.33,129.32,7.7349]
[1744550627184,7.7331,129.35,129.32,7.7349]
[1744550627385,0.05828869,129.34,129.32,7.7349]
[1744550627787,7.79228869,129.34,129.3,7.79382531]
[1744550627982,37.95228869,129.34,129.3,7.79382531]
[1744550628587,30.21828869,129.34,129.31,7.7354]
[1744550628889,30.21828869,129.34,129.3,0.05792531]
[1744550629087,37.95218869,129.34,129.3,7.79392531]
[1744550629489,37.95218869,129.34,129.3,0.05792531]
[1744550630589,37.95218869,129.34,129.3,7.79362531]
[1744550630889,37.95218869,129.34,129.3,0.05792531]
[1744550631391,37.95218869,129.34,129.3,7.79372531]
[1744550631591,7.7345,129.33,129.3,0.05792531]
[1744550631787,30.21828869,129.34,129.3,0.05792531]
[1744550632192,7.7349,129.32,129.3,0.05792531]
[1744550632391,30.21828869,129.34,129.3,0.05792531]
[1744550632793,7.7346,129.33,129.3,0.05792531]
[1744550632994,30.21828869,129.34,129.3,0.05792531]
[1744550633394,7.7355,129.31,129.3,0.05792531]
[1744550633594,37.8755,129.31,129.3,0.05792531]
[1744550633793,30.14,129.31,129.3,0.05792531]
[1744550636101,7.7351,129.32,129.3,0.05792531]
[1744550636296,7.7355,129.31,129.3,0.05792531]
[1744550637300,37.8752,129.32,129.3,0.05792531]
[1744550637600,30.14,129.32,129.21,30.04]
[1744550637800,30.14,129.32,129.22,2.1407]
[1744550638200,7.7379,129.27,129.24,7.7394]
[1744550638400,37.7779,129.27,129.24,7.7394]
[1744550638699,7.7385,129.26,129.23,7.74]
[1744550638905,30.09543765,129.27,129.24,0.05768791]
[1744550639099,7.7391,129.25,129.24,0.05768791]
[1744550639500,30.09587799,129.27,129.18,32.0211]
[1744550639799,364.0,129.32,129.18,32.0211]
[1744550639800,30.04,129.26,129.19,7.7424]
[1744550640000,30.04,129.25,129.19,7.7424]
[1744550640198,7.7412,129.22,129.19,7.7424]
[1744550640396,7.7412,129.22,129.18,1.9811]
[1744550640397,30.04,129.22,129.18,1.9811]
[1744550640598,0.05808144,129.21,129.19,0.04973721]
[1744550640902,7.7421,129.2,129.19,0.04973721]
[1744550641403,30.09808144,129.21,129.19,0.04973721]
[1744550641701,0.05808144,129.21,129.19,0.04973721]
[1744550642102,0.05808144,129.21,129.2,7.7421]
[1744550642304,0.05808144,129.21,129.19,0.04973721]
[1744550642798,7.7421,129.2,129.19,0.04973721]
[1744550645109,37.7821,129.2,129.19,0.04973721]
[1744550646308,7.7433,129.18,129.15,7.7448]
[1744550646502,30.04,129.2,129.14,2.0845]
[1744550646807,30.04,129.2,129.1,34.3201]
[1744550647008,1.0881,129.25,129.13,1.958]
[1744550647305,0.05593318,129.2,129.18,0.05364017]
[1744550647608,30.06,129.19,129.18,0.05364017]
[1744550648009,30.06,129.19,129.1,34.3201]
[1744550648310,30.06,129.19,129.1,6.3704]
[1744550649308,0.05777009,129.16,129.14,7.7456]
[1744550650702,7.80227009,129.16,129.13,7.80497999]
[1744550651602,7.80227009,129.16,129.13,0.05897999]
[1744550651807,7.7451,129.15,129.13,0.05897999]
[1744550652606,30.11777009,129.16,129.13,0.05897999]
[1744550653408,7.7457,129.14,129.13,0.05897999]
[1744550653810,30.11777009,129.16,129.08,1.9779]
[1744550654007,7.7472,129.12,129.08,9.7268]
[1744550654307,30.06,129.12,129.02,34.3366]
[1744550654508,30.06,129.12,129.07,7.7495]
[1744550655012,7.79798154,129.11,129.08,0.05736559]
[1744550655410,0.05018154,129.11,129.08,0.05736559]
[1744550655911,7.79778154,129.11,129.08,0.05736559]
[1744550656407,7.7481,129.1,129.08,0.05736559]
[1744550658313,7.79768154,129.11,129.08,0.05736559]
[1744550658913,7.79768154,129.11,129.08,7.80626559]
[1744550659114,0.05018154,129.11,129.08,0.05736559]
[1744550659409,0.05018154,129.11,129.09,7.7481]
[1744550659607,0.05018154,129.11,129.08,0.05736559]
[1744550660213,0.05018154,129.11,129.1,7.7481]
[1744550660913,0.05018154,129.11,129.08,0.05736559]
[1744550661409,30.08,129.17,129.08,30.13736559]
[1744550661614,30.08,129.17,129.09,2.0487]
[1744550662518,7.7467,129.13,129.09,2.0487]
[1744550662718,7.7467,129.13,129.12,0.05930349]
[1744550662918,37.8267,129.13,129.12,0.05930349]
[1744550663116,30.08,129.13,129.12,0.05930349]
[1744550664014,0.05271272,129.14,129.12,0.05930349]
[1744550664518,0.05271272,129.14,129.13,7.7463]
[1744550664918,30.08,129.17,129.12,0.05930349]
[1744550665120,30.08,129.17,129.16,7.7445]
[1744550665514,30.08,129.17,129.11,30.08]
[1744550666018,0.05528583,129.15,129.13,0.05059021]
[1744550667118,0.05528583,129.15,129.14,7.7457]
[1744550667820,0.05528583,129.15,129.13,0.05059021]
[1744550669411,7.7457,129.14,129.13,0.05059021]
[1744550672123,7.7476,129.11,129.05,32.6953]
[1744550672324,7.7476,129.11,129.05,34.8329]
[1744550672524,30.64,129.12,129.05,34.8329]
[1744550672822,7.7479,129.11,129.07,7.7497]
[1744550673124,30.64,129.12,129.07,7.7497]
[1744550673423,7.80169629,129.1,129.08,0.0524887]
[1744550673617,0.05339629,129.1,129.08,0.0524887]
[1744550674020,7.7508,129.06,129.02,2.03]
[1744550674319,30.64,129.07,129.02,2.03]
[1744550674517,7.7514,129.05,129.02,2.03]
[1744550675119,0.05580613,129.05,129.02,9.83959412]
[1744550675319,0.05580613,129.05,129.02,0.05679412]
[1744550675622,7.7523,129.03,129.02,0.05679412]
[1744550675819,38.3923,129.03,129.02,0.05679412]
[1744550676423,30.64,129.03,128.96,6.1351]
[1744550676920,30.64,129.03,128.96,4.0055]
[1744550677126,7.7562,128.97,128.93,38.6743516]
[1744550677326,30.64,128.97,128.93,38.6743516]
[1744550677529,30.64,128.97,128.93,36.5447516]
[1744550677726,0.05843946,128.96,128.94,0.0517091]
[1744550678128,7.7571,128.95,128.94,0.0517091]
[1744550678728,7.81503946,128.96,128.94,0.0517091]
[1744550678928,0.05843946,128.96,128.94,0.0517091]
[1744550679128,30.64,128.97,128.94,0.0517091]